bitfinex/quotes_BTCUSD_20220731
["timestamp","ask_amount","ask_price","bid_price","bid_amount"]
[1659240525133,0.00060638,23750.0,23749.0,1.54923199]
[1659240525350,0.00060638,23750.0,23749.0,1.84923199]
[1659240526207,0.00060638,23750.0,23749.0,1.12842299]
[1659240526421,0.00060638,23750.0,23749.0,0.07106199]
[1659240526636,0.00060638,23750.0,23749.0,0.026]
[1659240526850,0.1547845,23750.0,23749.0,0.026]
[1659240527064,0.11933638,23750.0,23749.0,0.026]
[1659240527718,0.11933638,23750.0,23746.0,0.3655]
[1659240527952,0.11933638,23750.0,23747.0,0.303797]
[1659240528175,0.00554439,23750.0,23746.0,0.77275733]
[1659240528400,0.05,23749.0,23747.0,0.303797]
[1659240528628,0.00554439,23750.0,23748.0,0.195271]
[1659240528837,0.00060638,23750.0,23747.0,0.037]
[1659240529444,0.04099251,23750.0,23747.0,0.037]
[1659240529652,0.0360545,23750.0,23747.0,0.037]
[1659240530089,0.0360545,23750.0,23746.0,0.40725733]
[1659240530564,0.0360545,23750.0,23747.0,0.071]
[1659240531004,0.05,23749.0,23747.0,0.071]
[1659240531235,0.05,23748.0,23747.0,0.071]
[1659240531463,0.00493801,23749.0,23747.0,0.071]
[1659240531679,0.0360545,23750.0,23747.0,0.071]
[1659240531926,0.04099251,23750.0,23746.0,0.40725733]
[1659240532584,0.04099251,23750.0,23746.0,0.4861424]
[1659240533912,0.04099251,23750.0,23746.0,0.4071424]
[1659240534613,0.04099251,23750.0,23746.0,0.4661424]
[1659240534835,0.00554439,23750.0,23746.0,0.4661424]
[1659240535982,0.00554439,23750.0,23746.0,0.4071424]
[1659240536626,0.00554439,23750.0,23746.0,0.4661424]
[1659240537971,0.00554439,23750.0,23746.0,0.4071424]
[1659240538627,0.00554439,23750.0,23746.0,0.4861424]
[1659240538795,0.00060638,23750.0,23747.0,0.303797]
[1659240539000,0.00060638,23750.0,23746.0,0.4861424]
[1659240539324,0.00554439,23750.0,23746.0,0.4861424]
[1659240539543,0.05,23749.0,23746.0,0.4861424]
[1659240539767,0.00554439,23750.0,23747.0,0.510446]
[1659240539768,0.00060638,23750.0,23747.0,0.510446]
[1659240540558,0.00060638,23750.0,23747.0,0.590446]
[1659240541001,0.00060638,23750.0,23748.0,0.303797]
[1659240541220,0.00060638,23750.0,23747.0,0.590446]
[1659240541435,0.00060638,23750.0,23748.0,0.303797]
[1659240541644,0.00060638,23750.0,23747.0,0.590446]
[1659240541933,0.00060638,23750.0,23748.0,0.303797]
[1659240542144,0.00060638,23750.0,23747.0,0.510446]
[1659240542377,0.00060638,23750.0,23748.0,0.383797]
[1659240542596,0.00060638,23750.0,23749.0,0.24031099]
[1659240542808,0.00060638,23750.0,23749.0,0.54031099]
[1659240543025,0.00060638,23750.0,23749.0,0.24031099]
[1659240543251,0.00060638,23750.0,23749.0,0.54031099]
[1659240544548,0.00060638,23750.0,23749.0,0.62031099]
[1659240544775,0.00060638,23750.0,23749.0,1.02756832]
[1659240544987,0.00060638,23750.0,23749.0,1.07756832]
[1659240545196,0.00060638,23750.0,23749.0,1.15917832]
[1659240545672,0.00060638,23750.0,23749.0,0.97917832]
[1659240545886,0.00060638,23750.0,23749.0,0.94756832]
[1659240546556,0.00060638,23750.0,23749.0,1.02756832]
[1659240547453,0.00060638,23750.0,23749.0,0.72756832]
[1659240547671,0.16378638,23750.0,23749.0,0.195249]
[1659240548099,0.16378638,23750.0,23747.0,0.598146]
[1659240548380,0.16378638,23750.0,23749.0,0.072]
[1659240548381,0.11933638,23750.0,23749.0,0.072]
[1659240548603,0.11933638,23750.0,23749.0,0.267249]
[1659240548826,0.11933638,23750.0,23749.0,0.072]
[1659240549045,0.00060638,23750.0,23749.0,0.07192754]
[1659240549712,0.00060638,23750.0,23748.0,0.40725733]
[1659240549945,0.00060638,23750.0,23749.0,0.303797]
[1659240550163,0.00060638,23750.0,23748.0,0.40725733]
[1659240550388,0.00060638,23750.0,23749.0,0.41985899]
[1659240551045,0.00060638,23750.0,23749.0,0.46985899]
[1659240551307,0.00060638,23750.0,23749.0,0.71985899]
[1659240551531,0.00060638,23750.0,23749.0,1.12711632]
[1659240551751,0.00060638,23750.0,23749.0,1.15611632]
[1659240552469,0.00060638,23750.0,23749.0,1.13611632]
[1659240553815,0.00060638,23750.0,23749.0,1.05619883]
[1659240554471,0.00060638,23750.0,23749.0,1.12819883]
[1659240554955,0.00060638,23750.0,23749.0,1.25980883]
[1659240555226,0.00060638,23750.0,23749.0,1.56264148]
[1659240555454,0.00060638,23750.0,23749.0,2.17054148]
[1659240555682,0.00060638,23750.0,23749.0,2.09854148]
[1659240555995,0.00060638,23750.0,23749.0,1.79570883]
[1659240556162,0.00060638,23750.0,23749.0,0.75619883]
[1659240556380,0.11933638,23750.0,23749.0,0.11206199]
[1659240556595,0.11933638,23750.0,23749.0,0.067]
[1659240556815,0.00060638,23750.0,23749.0,0.067]
[1659240557032,0.00060638,23750.0,23749.0,0.370797]
[1659240557249,0.00060638,23750.0,23749.0,0.067]
[1659240557462,0.00060638,23750.0,23749.0,0.77805433]
[1659240557688,0.00060638,23750.0,23749.0,0.72369781]
[1659240558110,0.00060638,23750.0,23749.0,0.77369781]
[1659240558333,0.00060638,23750.0,23749.0,1.12369781]
[1659240558547,0.00060638,23750.0,23749.0,1.19869781]
[1659240559236,0.00060638,23750.0,23749.0,1.49487522]
[1659240559459,0.30493801,23759.0,23750.0,1.0]
[1659240559677,0.3,23762.0,23753.0,0.681114]
[1659240560095,0.00493801,23762.0,23754.0,1.70607833]
[1659240560325,0.70725733,23764.0,23754.0,1.70607833]
[1659240560326,0.70725733,23764.0,23756.0,0.630984]
[1659240560559,0.70725733,23764.0,23757.0,0.3]
[1659240560794,0.70725733,23764.0,23757.0,0.01264348]
[1659240561028,0.70725733,23764.0,23756.0,0.98785733]
[1659240561029,0.303797,23763.0,23756.0,1.19822033]
[1659240561300,0.40725733,23763.0,23756.0,1.19822033]
[1659240561526,0.70714663,23762.0,23756.0,0.210363]
[1659240561749,0.40725733,23761.0,23756.0,0.210363]
[1659240567456,0.29997786,23764.0,23757.0,0.303797]
[1659240567792,0.0001688,23766.0,23758.0,0.70725733]
[1659240567793,0.70742613,23766.0,23758.0,0.70725733]
[1659240567898,0.70742613,23766.0,23758.0,0.40725733]
[1659240568129,0.303797,23765.0,23758.0,0.40725733]
[1659240568375,0.603797,23764.0,23758.0,0.40725733]
[1659240568594,0.303797,23763.0,23758.0,0.40725733]
[1659240568829,0.3,23764.0,23758.0,0.40725733]
[1659240569047,0.3,23764.0,23759.0,0.603797]
[1659240569296,0.30493801,23764.0,23759.0,0.3]
[1659240569519,0.30493801,23764.0,23758.0,0.61760933]
[1659240569950,0.303797,23763.0,23758.0,0.61760933]
[1659240570198,0.30493801,23764.0,23758.0,0.61760933]
[1659240570396,0.71219534,23764.0,23758.0,0.210352]
[1659240570669,0.303797,23763.0,23756.0,0.8523]
[1659240570891,0.3,23762.0,23757.0,0.70725733]
[1659240572246,0.30493801,23762.0,23757.0,0.3]
[1659240572468,0.3,23762.0,23757.0,0.3]
[1659240572905,0.3,23762.0,23757.0,0.51036]
[1659240573647,0.3,23762.0,23757.0,0.21036]
[1659240574878,0.30493801,23762.0,23757.0,0.51036]
[1659240575600,0.3,23762.0,23757.0,0.51036]
[1659240575815,0.3,23762.0,23757.0,0.21036]
[1659240576058,0.30493801,23762.0,23757.0,0.21036]
[1659240577210,0.30493801,23762.0,23757.0,0.51036]
[1659240577211,0.3,23762.0,23757.0,0.51036]
[1659240577432,0.30493801,23762.0,23757.0,0.21036]
[1659240577849,0.3,23762.0,23757.0,0.21036]
[1659240578324,0.3,23762.0,23757.0,0.51036]
[1659240578980,0.3,23762.0,23757.0,0.21036]
[1659240579455,0.3,23762.0,23757.0,0.51036]
[1659240579904,0.3,23762.0,23757.0,0.21036]
[1659240580348,0.3,23762.0,23757.0,0.51036]
[1659240580610,0.30022091,23766.0,23762.0,8.14e-05]
[1659240580828,0.653797,23763.0,23762.0,8.14e-05]
[1659240581252,0.303797,23763.0,23762.0,8.14e-05]
[1659240581680,0.51219534,23763.0,23762.0,8.14e-05]
[1659240581908,0.81599234,23763.0,23762.0,8.14e-05]
[1659240583534,1.11063471,23763.0,23762.0,8.14e-05]
[1659240583975,0.81599234,23763.0,23762.0,8.14e-05]
[1659240585821,0.303797,23761.0,23758.0,0.04205723]
[1659240586069,0.71105433,23760.0,23758.0,0.04205723]
[1659240586294,3.371e-05,23762.0,23759.0,0.04506199]
[1659240586517,3.371e-05,23762.0,23761.0,0.04506199]
[1659240587030,3.371e-05,23762.0,23761.0,0.34506199]
[1659240587239,3.371e-05,23762.0,23761.0,0.05770547]
[1659240588615,3.371e-05,23762.0,23761.0,0.08370547]
[1659240588856,3.371e-05,23762.0,23761.0,0.026]
[1659240589809,3.371e-05,23762.0,23760.0,0.25237961]
[1659240590013,3.371e-05,23762.0,23761.0,0.04506199]
[1659240590958,3.371e-05,23762.0,23760.0,0.67158333]
[1659240592047,3.371e-05,23762.0,23761.0,0.04006199]
[1659240592282,3.371e-05,23762.0,23760.0,0.67158333]
[1659240592512,3.371e-05,23762.0,23760.0,0.71363694]
[1659240592726,3.371e-05,23762.0,23761.0,0.04006199]
[1659240595649,3.371e-05,23762.0,23761.0,0.04306199]
[1659240596096,3.371e-05,23762.0,23761.0,0.45031932]
[1659240596312,3.371e-05,23762.0,23761.0,0.75411632]
[1659240596550,3.371e-05,23762.0,23761.0,0.75331932]
[1659240596777,3.371e-05,23762.0,23761.0,0.44731932]
[1659240597018,3.371e-05,23762.0,23760.0,0.04205361]
[1659240597284,3.371e-05,23762.0,23761.0,0.04006199]
[1659240598632,3.371e-05,23762.0,23761.0,0.09706199]
[1659240599072,3.371e-05,23762.0,23761.0,1.74892415]
[1659240599959,3.371e-05,23762.0,23761.0,1.69192415]
[1659240600634,3.371e-05,23762.0,23761.0,2.41347426]
[1659240601792,3.371e-05,23762.0,23761.0,2.35647426]
[1659240602222,3.371e-05,23762.0,23761.0,2.65647426]
[1659240602448,3.371e-05,23762.0,23761.0,2.96027126]
[1659240602670,3.371e-05,23762.0,23761.0,3.01427126]
[1659240603105,3.371e-05,23762.0,23761.0,2.76047426]
[1659240603347,3.371e-05,23762.0,23761.0,3.52571008]
[1659240603557,3.371e-05,23762.0,23761.0,3.61776188]
[1659240603784,3.371e-05,23762.0,23761.0,3.56376188]
[1659240605376,3.371e-05,23762.0,23761.0,3.53216188]
[1659240606048,3.371e-05,23762.0,23761.0,3.58816188]
[1659240606556,3.371e-05,23762.0,23761.0,3.64716188]
[1659240607885,3.371e-05,23762.0,23761.0,3.53216188]
[1659240608571,3.371e-05,23762.0,23761.0,2.61140798]
[1659240609490,3.371e-05,23762.0,23761.0,2.5987645]
[1659240609705,3.371e-05,23762.0,23761.0,2.1487645]
[1659240609924,3.371e-05,23762.0,23761.0,1.36971017]
[1659240610396,3.371e-05,23762.0,23761.0,0.70516006]
[1659240610611,3.371e-05,23762.0,23761.0,1.08795706]
[1659240610827,3.371e-05,23762.0,23761.0,0.78416006]
[1659240611266,3.371e-05,23762.0,23761.0,1.08795706]
[1659240611512,3.371e-05,23762.0,23761.0,1.38795706]
[1659240611942,3.371e-05,23762.0,23761.0,1.30895706]
[1659240612166,3.371e-05,23762.0,23761.0,1.00895706]
[1659240612599,3.371e-05,23762.0,23761.0,1.13795706]
[1659240612955,3.371e-05,23762.0,23761.0,1.38795706]
[1659240613509,3.371e-05,23762.0,23761.0,0.7248488]
[1659240613717,0.05,23768.0,23762.0,3.903e-05]
[1659240613938,0.00018567,23766.0,23762.0,3.903e-05]
[1659240614392,0.03544812,23765.0,23762.0,3.903e-05]
[1659240614618,0.00018567,23766.0,23762.0,0.07903903]
[1659240614839,0.40725733,23767.0,23762.0,0.07903903]
[1659240615959,0.40725733,23767.0,23762.0,3.903e-05]
[1659240616586,0.40725733,23767.0,23762.0,0.07803903]
[1659240618586,0.40725733,23767.0,23762.0,0.15603903]
[1659240619196,0.40725733,23767.0,23762.0,3.903e-05]
[1659240620611,0.40725733,23767.0,23762.0,0.07803903]
[1659240621977,0.40725733,23767.0,23762.0,3.903e-05]
[1659240622611,0.40725733,23767.0,23762.0,0.07803903]
[1659240622827,0.3,23766.0,23762.0,0.07803903]
[1659240623059,0.03544812,23765.0,23762.0,0.07803903]
[1659240623923,0.03544812,23765.0,23762.0,3.903e-05]
[1659240624636,0.40725733,23767.0,23762.0,0.07903903]
[1659240624637,0.68996223,23767.0,23762.0,0.07903903]
[1659240625081,0.40725733,23767.0,23762.0,0.07903903]
[1659240625936,0.40725733,23767.0,23762.0,3.903e-05]
[1659240626417,0.95,23763.0,23762.0,3.903e-05]
[1659240626636,1.28924512,23763.0,23762.0,0.07803903]
[1659240626856,0.33924512,23763.0,23762.0,0.07803903]
[1659240627082,0.5564,23765.0,23762.0,0.07803903]
[1659240627352,0.40725733,23765.0,23762.0,0.07803903]
[1659240628010,0.03544812,23764.0,23762.0,3.903e-05]
[1659240628694,0.03544812,23764.0,23762.0,0.07903903]
[1659240629354,0.40725733,23765.0,23762.0,0.07903903]
[1659240629579,0.44270545,23765.0,23762.0,0.07903903]
[1659240629808,0.44270545,23765.0,23762.0,3.903e-05]
[1659240630683,0.44270545,23765.0,23762.0,0.07903903]
[1659240630684,0.303797,23764.0,23762.0,0.07903903]
[1659240630934,0.44270545,23765.0,23762.0,0.07903903]
[1659240631157,0.303797,23764.0,23762.0,0.07903903]
[1659240631376,0.44270545,23765.0,23762.0,0.07903903]
[1659240631842,0.44270545,23765.0,23762.0,3.903e-05]
[1659240632706,0.44270545,23765.0,23762.0,0.07903903]
[1659240632934,0.303797,23764.0,23762.0,0.07903903]
[1659240633149,0.44270545,23765.0,23762.0,0.07903903]
[1659240633864,0.44270545,23765.0,23762.0,3.903e-05]
[1659240634542,0.44270545,23765.0,23762.0,0.07903903]
[1659240634765,0.303797,23764.0,23762.0,0.07903903]
[1659240634995,0.44270545,23765.0,23762.0,0.07903903]
[1659240635217,0.303797,23764.0,23762.0,0.07903903]
[1659240635433,0.44270545,23765.0,23762.0,0.07903903]
[1659240635888,0.44270545,23765.0,23762.0,3.903e-05]
[1659240636388,0.303797,23764.0,23762.0,3.903e-05]
[1659240636602,0.10993801,23763.0,23762.0,0.07903903]
[1659240636822,0.44270545,23765.0,23762.0,0.07903903]
[1659240637051,0.303797,23764.0,23762.0,0.07903903]
[1659240637274,0.44270545,23765.0,23762.0,0.07903903]
[1659240637739,0.303797,23764.0,23762.0,0.07903903]
[1659240637963,0.44270545,23765.0,23764.0,7.139e-05]
[1659240638176,0.74650245,23765.0,23764.0,7.139e-05]
[1659240640291,0.74650245,23765.0,23751.0,0.665695]
[1659240640292,0.10993801,23759.0,23751.0,0.665695]
[1659240640505,0.3,23758.0,23752.0,0.40725733]
[1659240640737,0.303797,23757.0,23752.0,0.40725733]
[1659240640956,0.3,23758.0,23749.0,0.5916]
[1659240640957,0.303797,23756.0,23750.0,0.40725733]
[1659240641236,0.3,23756.0,23750.0,0.40725733]
[1659240642128,0.3,23756.0,23750.0,0.61767733]
[1659240642582,0.303,23756.0,23750.0,0.65467733]
[1659240643507,0.303,23756.0,23751.0,0.3]
[1659240643988,0.3,23756.0,23751.0,0.3]
[1659240644226,0.3,23756.0,23750.0,0.61767733]
[1659240644668,0.303,23756.0,23751.0,0.037]
[1659240645148,0.303797,23755.0,23751.0,0.037]
[1659240645370,0.60993801,23752.0,23751.0,0.037]
[1659240645586,0.10993801,23752.0,23751.0,0.037]
[1659240645812,0.10993801,23752.0,23746.0,0.39]
[1659240646046,0.10993801,23752.0,23747.0,0.71105433]
[1659240646267,0.10993801,23752.0,23748.0,0.60252633]
[1659240646498,0.40725733,23755.0,23749.0,0.30377]
[1659240646719,0.40725733,23755.0,23748.0,0.41990081]
[1659240646950,0.40725733,23755.0,23749.0,0.31264348]
[1659240648366,0.40725733,23755.0,23749.0,0.01264348]
[1659240648599,0.3,23754.0,23749.0,0.01264348]
[1659240649277,0.48625733,23755.0,23748.0,0.40725733]
[1659240649480,0.3,23754.0,23748.0,0.40725733]
[1659240649914,0.3,23754.0,23749.0,0.3]
[1659240650385,0.40725733,23753.0,23746.0,1.321337]
[1659240650596,0.40725733,23753.0,23747.0,0.603797]
[1659240650809,0.40725733,23753.0,23747.0,0.3]
[1659240651250,0.70725733,23753.0,23747.0,0.3]
[1659240651778,0.3,23753.0,23748.0,0.303797]
[1659240652004,0.00993801,23753.0,23749.0,0.195246]
[1659240652235,0.3,23757.0,23750.0,0.30386864]
[1659240652457,0.40725733,23756.0,23750.0,9.864e-05]
[1659240652677,0.079,23753.0,23750.0,9.864e-05]
[1659240652887,0.03544812,23752.0,23748.0,1.17099233]
[1659240653315,0.03544812,23752.0,23749.0,0.303797]
[1659240653544,0.05,23751.0,23748.0,0.96055733]
[1659240653773,0.04538613,23752.0,23750.0,9.864e-05]
[1659240654003,0.00993801,23752.0,23750.0,9.864e-05]
[1659240654235,0.3,23755.0,23750.0,9.864e-05]
[1659240654469,0.70725733,23755.0,23750.0,9.864e-05]
[1659240654694,0.70725733,23755.0,23751.0,0.7428991]
[1659240654695,0.079,23752.0,23751.0,0.7428991]
[1659240655865,0.40725733,23755.0,23751.0,0.7428991]
[1659240656085,0.40725733,23755.0,23748.0,0.96055733]
[1659240656292,0.03544812,23754.0,23749.0,0.3]
[1659240656527,0.03544812,23754.0,23748.0,0.96055733]
[1659240657398,0.03544812,23754.0,23749.0,0.3]
[1659240657598,0.33544812,23754.0,23749.0,0.3]
[1659240657922,0.33544812,23754.0,23748.0,0.96055733]
[1659240658567,0.41444812,23754.0,23748.0,0.96055733]
[1659240659867,0.33544812,23754.0,23748.0,0.96055733]
[1659240660500,0.79070545,23754.0,23746.0,0.631333]
[1659240660719,0.40725733,23753.0,23744.0,0.7428991]
[1659240660937,0.40725733,23753.0,23744.0,1.15015643]
[1659240660938,0.603797,23752.0,23744.0,1.15015643]
[1659240661145,0.71105433,23751.0,23744.0,0.40725733]
[1659240661355,0.3,23750.0,23744.0,0.40725733]
[1659240661565,0.40725733,23751.0,23744.0,0.40725733]
[1659240661769,0.40725733,23751.0,23750.0,6.104e-05]
[1659240661979,0.71105433,23751.0,23750.0,6.104e-05]
[1659240662632,0.47125733,23751.0,23750.0,6.104e-05]
[1659240663554,0.77505433,23751.0,23750.0,6.104e-05]
[1659240663783,0.71105433,23751.0,23750.0,6.104e-05]
[1659240664222,0.40725733,23751.0,23750.0,6.104e-05]
[1659240664675,0.41725733,23751.0,23750.0,6.104e-05]
[1659240664891,0.45270545,23751.0,23750.0,6.104e-05]
[1659240665787,0.44270545,23751.0,23750.0,6.104e-05]
[1659240666017,0.74650245,23751.0,23750.0,6.104e-05]
[1659240666666,0.45270545,23751.0,23750.0,6.104e-05]
[1659240666929,0.452616,23751.0,23750.0,6.104e-05]
[1659240667152,0.04544812,23751.0,23750.0,6.104e-05]
[1659240667624,0.01,23751.0,23750.0,6.104e-05]
[1659240667849,0.5968,23753.0,23750.0,6.104e-05]
[1659240668088,0.35,23751.0,23750.0,6.104e-05]
[1659240668754,0.35077496,23751.0,23750.0,6.104e-05]
[1659240668973,0.38544812,23751.0,23750.0,6.104e-05]
[1659240669398,0.68924512,23751.0,23750.0,6.104e-05]
[1659240669634,0.38544812,23751.0,23750.0,6.104e-05]
[1659240670513,0.39544812,23751.0,23750.0,6.104e-05]
[1659240671350,0.01,23751.0,23750.0,6.104e-05]
[1659240671581,0.12873,23751.0,23750.0,6.104e-05]
[1659240672338,0.11873,23751.0,23750.0,6.104e-05]
[1659240672532,0.46797512,23751.0,23750.0,6.104e-05]
[1659240672761,0.16417812,23751.0,23750.0,6.104e-05]
[1659240672905,0.46797512,23751.0,23750.0,6.104e-05]
[1659240673117,0.16417812,23751.0,23750.0,6.104e-05]
[1659240675086,0.01077496,23751.0,23750.0,0.04490091]
[1659240675310,0.01077496,23751.0,23750.0,0.34869791]
[1659240675542,0.01077496,23751.0,23750.0,0.69869791]
[1659240675775,0.00077496,23751.0,23750.0,0.69869791]
[1659240676859,0.00077496,23751.0,23750.0,0.65424791]
[1659240677327,0.3,23756.0,23750.0,0.65424791]
[1659240677563,0.40725733,23755.0,23751.0,0.3]
[1659240677771,0.03467316,23754.0,23751.0,0.3]
[1659240677988,0.3,23754.0,23751.0,0.29916145]
[1659240678512,0.079,23754.0,23751.0,0.50957645]
[1659240678728,0.079,23754.0,23751.0,0.210415]
[1659240678979,0.11367316,23754.0,23751.0,0.210415]
[1659240679190,0.30077496,23753.0,23751.0,0.210415]
[1659240679408,0.00077496,23753.0,23751.0,0.210415]
[1659240680508,0.072,23753.0,23751.0,0.210415]
[1659240680950,0.08193801,23753.0,23751.0,0.210415]
[1659240681178,0.072,23753.0,23751.0,0.210415]
[1659240681411,0.10744812,23753.0,23751.0,0.210415]
[1659240681634,0.05,23752.0,23751.0,0.210415]
[1659240681861,0.08193801,23753.0,23751.0,0.210415]
[1659240682325,0.057,23753.0,23751.0,0.210415]
[1659240682542,0.072,23753.0,23751.0,0.210415]
[1659240682756,0.10667316,23753.0,23751.0,0.210415]
[1659240682974,0.10744812,23753.0,23751.0,0.210415]
[1659240683192,0.072,23753.0,23751.0,0.210415]
[1659240684062,0.40725733,23755.0,23751.0,0.210415]
[1659240684500,0.03544812,23754.0,23751.0,0.210415]
[1659240684712,0.40725733,23755.0,23751.0,0.210415]
[1659240685564,0.03544812,23754.0,23751.0,0.210415]
[1659240685787,0.00993801,23754.0,23751.0,0.210415]
[1659240686287,0.41719534,23755.0,23751.0,0.210415]
[1659240686537,0.071,23754.0,23751.0,0.210415]
[1659240687185,0.08093801,23754.0,23751.0,0.210415]
[1659240687413,0.08093801,23754.0,23752.0,1.18342418]
[1659240687620,0.10567316,23754.0,23752.0,1.18342418]
[1659240687842,0.03544812,23754.0,23752.0,1.18342418]
[1659240688066,0.40725733,23755.0,23752.0,1.18342418]
[1659240688528,0.071,23754.0,23752.0,1.18342418]
[1659240688968,0.071,23754.0,23751.0,0.210415]
[1659240689896,0.05,23753.0,23751.0,0.210415]
[1659240690128,0.08093801,23754.0,23751.0,0.210415]
[1659240690374,0.00993801,23754.0,23751.0,0.210415]
[1659240690597,0.40725733,23755.0,23751.0,0.210415]
[1659240691941,0.03544812,23754.0,23751.0,0.210415]
[1659240692167,0.40725733,23755.0,23752.0,0.00011319]
[1659240692594,0.071,23754.0,23751.0,0.210415]
[1659240694826,0.08093801,23754.0,23751.0,0.210415]
[1659240695475,0.071,23754.0,23751.0,0.210415]
[1659240695815,0.03544812,23754.0,23751.0,0.210415]
[1659240696031,0.3,23757.0,23751.0,0.210415]
[1659240696286,0.70725733,23757.0,23751.0,0.210415]
[1659240696496,0.071,23754.0,23751.0,0.210415]
[1659240697828,0.70725733,23757.0,23751.0,0.210415]
[1659240698284,0.303797,23756.0,23751.0,0.210415]
[1659240698507,0.78625733,23757.0,23751.0,0.210415]
[1659240699161,0.78625733,23757.0,23750.0,0.30006104]
[1659240699377,0.78625733,23757.0,23750.0,0.75731837]
[1659240699590,0.78625733,23757.0,23750.0,0.70731837]
[1659240699810,0.70725733,23757.0,23750.0,0.75731837]
[1659240700664,0.78625733,23757.0,23750.0,0.75731837]
[1659240701089,0.78625733,23757.0,23750.0,0.70731837]
[1659240701834,0.70725733,23757.0,23750.0,0.70731837]
[1659240702481,0.78625733,23757.0,23750.0,0.70731837]
[1659240702680,0.05,23756.0,23750.0,0.70731837]
[1659240703024,0.79610492,23757.0,23750.0,0.70731837]
[1659240703488,0.78116691,23757.0,23750.0,0.70731837]
[1659240703699,0.78116691,23757.0,23751.0,0.303797]
[1659240703976,0.3,23756.0,23752.0,0.3]
[1659240704177,0.40725733,23757.0,23750.0,0.96774037]
[1659240704390,0.40725733,23757.0,23750.0,1.01774037]
[1659240704611,0.48625733,23757.0,23750.0,1.01774037]
[1659240705272,0.48625733,23757.0,23750.0,0.96774037]
[1659240705928,0.3,23756.0,23750.0,1.01774037]
[1659240706622,0.379,23756.0,23750.0,1.01774037]
[1659240706846,0.079,23756.0,23750.0,1.01774037]
[1659240707311,0.379,23756.0,23750.0,1.01774037]
[1659240707548,0.379,23756.0,23750.0,0.96774037]
[1659240707549,0.079,23756.0,23750.0,0.96774037]
[1659240707767,0.379,23756.0,23750.0,0.96774037]
[1659240707982,0.40725733,23757.0,23750.0,1.01774037]
[1659240708228,0.3,23756.0,23750.0,1.01774037]
[1659240708666,0.379,23756.0,23750.0,1.01774037]
[1659240709010,0.079,23756.0,23750.0,1.01774037]
[1659240709093,0.379,23756.0,23750.0,1.01774037]
[1659240709841,0.40725733,23757.0,23750.0,1.01774037]
[1659240710299,0.3,23756.0,23750.0,1.01774037]
[1659240710946,0.3,23756.0,23750.0,0.96774037]
[1659240711381,0.48625733,23757.0,23750.0,1.01774037]
[1659240711587,0.3,23756.0,23750.0,1.01774037]
[1659240712246,0.3,23756.0,23750.0,0.96774037]
[1659240712731,0.379,23756.0,23750.0,0.96774037]
[1659240712954,0.079,23756.0,23750.0,0.96774037]
[1659240713186,0.379,23756.0,23750.0,0.91774037]
[1659240713881,0.3,23756.0,23750.0,0.96774037]
[1659240714341,0.3,23756.0,23750.0,0.91774037]
[1659240714554,0.379,23756.0,23750.0,0.91774037]
[1659240714774,0.079,23756.0,23750.0,0.91774037]
[1659240714989,0.379,23756.0,23750.0,0.96774037]
[1659240715932,0.3,23756.0,23750.0,0.91774037]
[1659240718796,0.3,23756.0,23750.0,0.96774037]
[1659240719008,0.3,23756.0,23750.0,0.91774037]
[1659240719385,0.40725733,23757.0,23750.0,0.91774037]
[1659240719820,0.3,23756.0,23750.0,0.96774037]
[1659240720045,0.3,23756.0,23750.0,0.91774037]
[1659240720189,0.40725733,23757.0,23750.0,0.91774037]
[1659240720433,0.3,23756.0,23750.0,0.91774037]
[1659240720643,0.3,23756.0,23750.0,0.96774037]
[1659240720878,0.40725733,23757.0,23751.0,0.303797]
[1659240721115,0.40725733,23757.0,23750.0,0.96774037]
[1659240721330,0.40725733,23757.0,23750.0,1.01774037]
[1659240722035,0.079,23756.0,23750.0,1.01774037]
[1659240722241,0.079,23756.0,23750.0,0.61774037]
[1659240722462,0.603797,23755.0,23750.0,0.61774037]
[1659240722675,0.00993801,23755.0,23750.0,0.61774037]
[1659240722890,0.079,23756.0,23751.0,1.01105433]
[1659240723119,0.11254414,23765.0,23757.0,0.25]
[1659240723330,1.1351,23767.0,23758.0,1.42030465]
[1659240723544,1.1351,23767.0,23766.0,0.04006199]
[1659240723545,0.5559,23767.0,23766.0,0.04006199]
[1659240723767,0.859697,23767.0,23766.0,0.04006199]
[1659240723981,0.303797,23767.0,23763.0,0.210309]
[1659240724383,0.00018198,23767.0,23763.0,0.210309]
[1659240724619,0.74650245,23766.0,23763.0,0.210309]
[1659240724886,0.71105433,23765.0,23760.0,0.210338]
[1659240725118,0.70725733,23765.0,23760.0,0.210338]
[1659240725805,0.70725733,23765.0,23760.0,0.510338]
[1659240726046,0.70725733,23765.0,23760.0,0.210338]
[1659240726279,0.40725733,23764.0,23760.0,0.046]
[1659240726514,0.80993801,23761.0,23760.0,0.046]
[1659240726765,1.82099234,23761.0,23760.0,0.046]
[1659240727459,1.82099234,23761.0,23750.0,0.37086104]
[1659240727682,1.56755433,23760.0,23751.0,0.40725733]
[1659240727907,0.40725733,23759.0,23751.0,0.40725733]
[1659240728198,0.3,23758.0,23752.0,0.210407]
[1659240728431,0.8565,23760.0,23753.0,0.71105433]
[1659240728652,0.8565,23760.0,23753.0,0.40725733]
[1659240729376,0.40725733,23759.0,23752.0,0.61766433]
[1659240729600,0.40725733,23759.0,23751.0,0.5421]
[1659240730087,0.3,23758.0,23751.0,0.5421]
[1659240730308,0.3,23758.0,23752.0,0.049]
[1659240730309,0.40725733,23757.0,23752.0,0.049]
[1659240731437,0.40725733,23757.0,23751.0,0.752519]
[1659240731896,0.40725733,23757.0,23752.0,0.3]
[1659240732400,0.40725733,23757.0,23751.0,0.808519]
[1659240733128,0.40725733,23757.0,23752.0,0.303797]
[1659240733323,0.40725733,23757.0,23753.0,0.3]
[1659240733577,0.00993801,23757.0,23753.0,0.70725733]
[1659240733829,0.3,23758.0,23754.0,0.40725733]
[1659240734573,0.30993801,23758.0,23754.0,0.40725733]
[1659240734764,0.3,23758.0,23754.0,0.40725733]
[1659240734886,0.05,23757.0,23754.0,0.40725733]
[1659240735337,0.3,23758.0,23754.0,0.40725733]
[1659240736008,0.03544812,23757.0,23754.0,0.46125733]
[1659240736232,0.05,23756.0,23754.0,0.46125733]
[1659240736453,0.04538613,23757.0,23754.0,0.46125733]
[1659240736879,0.03544812,23757.0,23754.0,0.46125733]
[1659240737727,0.04538613,23757.0,23754.0,0.46125733]
[1659240737927,0.03544812,23757.0,23754.0,0.40725733]
[1659240738147,0.04538613,23757.0,23754.0,0.46325733]
[1659240738348,0.03544812,23757.0,23754.0,0.46325733]
[1659240738568,0.04538613,23757.0,23754.0,0.46325733]
[1659240738776,0.03544812,23757.0,23754.0,0.056]
[1659240739402,0.04538613,23757.0,23752.0,0.35]